bitfinex-derivatives/quotes_BNBF0:USTF0_20250128
["timestamp","ask_amount","ask_price","bid_price","bid_amount"]
[1738075896291,1.55662329,671.34,670.05,1.10948589]
[1738075896493,0.27389106,671.33,670.05,1.10948589]
[1738075896693,0.29790276,671.36,670.05,1.10948589]
[1738075897286,0.2738797,671.35,670.05,1.10948589]
[1738075897489,0.29790276,671.36,670.05,1.10948589]
[1738075898691,0.29790276,671.36,670.1,1.10948589]
[1738075901598,0.29790276,671.36,670.15,1.10948589]
[1738075901790,0.29790276,671.36,670.16,0.29843619]
[1738075903594,6.49745639,673.58,670.16,0.29843619]
[1738075903798,6.77114104,673.57,670.16,0.29843619]
[1738075903999,1.55576501,671.99,670.16,0.29843619]
[1738075904195,0.71958534,673.4,670.16,0.29843619]
[1738075904400,0.99325671,673.39,670.16,0.29843619]
[1738075904595,0.27367137,673.38,670.16,0.29843619]
[1738075904805,0.27367137,673.37,670.16,0.29843619]
[1738075904997,0.27367137,673.36,670.16,0.29843619]
[1738075905198,0.27367137,673.35,670.16,0.29843619]
[1738075905403,1.10857193,672.33,670.22,1.10533591]
[1738075905601,0.27367137,672.32,670.22,1.10533591]
[1738075906303,0.27365151,672.31,670.22,1.10533591]
[1738075906510,0.27365151,672.3,670.22,1.10533591]
[1738075906708,0.27365151,672.29,670.22,1.10533591]
[1738075906907,0.27365151,672.28,670.22,1.10533591]
[1738075907103,0.27365151,672.27,670.22,1.10533591]
[1738075907304,0.27365151,672.26,670.22,1.10533591]
[1738075907509,0.27365151,672.25,670.22,1.10533591]
[1738075907709,0.27365151,672.24,670.22,1.10533591]
[1738075907907,0.27365151,672.23,670.22,1.10533591]
[1738075908110,0.27365151,672.22,670.5,1.10533591]
[1738075908306,0.27365151,672.53,670.5,1.10533591]
[1738075908504,0.27362426,672.52,670.5,1.10533591]
[1738075908711,0.27362426,672.51,670.5,1.10533591]
[1738075908911,0.27362426,672.5,670.5,1.10533591]
[1738075909111,0.27362426,672.49,670.5,1.10533591]
[1738075909313,0.27362426,672.48,670.5,1.10533591]
[1738075909510,0.27362426,672.47,670.51,0.29828041]
[1738075909711,0.27362426,672.46,670.51,0.29828041]
[1738075909913,0.27362426,672.45,670.51,0.29828041]
[1738075910214,0.27362426,672.44,670.51,0.29828041]
[1738075910409,0.27362426,672.43,670.51,0.29828041]
[1738075910616,0.27362426,672.42,670.51,0.29828041]
[1738075910917,0.27362426,672.41,670.51,0.29828041]
[1738075911130,0.27362426,672.4,670.51,0.29828041]
[1738075911614,0.27362426,672.39,670.51,0.29828041]
[1738075911816,0.27362426,672.53,670.51,0.29828041]
[1738075912018,0.27362426,672.52,670.51,0.29828041]
[1738075912313,0.27362426,672.51,670.51,0.29828041]
[1738075912516,0.27362426,672.5,670.51,0.29828041]
[1738075912817,0.27362426,672.49,670.51,0.29828041]
[1738075913012,0.27362426,672.48,670.51,0.29828041]
[1738075913215,0.27355709,672.47,670.51,0.29828041]
[1738075913417,0.27355709,672.46,670.51,0.29828041]
[1738075913717,0.27355709,672.45,670.51,0.29828041]
[1738075913918,0.27355709,672.44,670.51,0.29828041]
[1738075914214,0.27355709,672.43,670.51,0.29828041]
[1738075914419,0.27355709,672.42,670.51,0.29828041]
[1738075914713,0.27355709,672.41,670.51,0.29828041]
[1738075914918,0.27359799,672.4,670.51,0.29828041]
[1738075915117,0.27359799,672.41,670.51,0.29828041]
[1738075916419,1.55448515,672.42,670.51,0.29828041]
[1738075916714,0.27359606,672.41,670.51,0.29828041]
[1738075918119,1.55448515,672.42,670.51,0.29828041]
[1738075918321,0.27355619,672.41,670.51,0.29828041]
[1738075920321,1.10857193,673.15,670.51,0.29828041]
[1738075920513,1.55439257,672.57,670.51,0.29828041]
[1738075920716,1.10857193,673.15,670.51,0.29828041]
[1738075920913,1.10857193,673.44,670.51,0.29828041]
[1738075920914,1.55423637,672.62,670.51,0.29828041]
[1738075921116,1.10857193,673.4,670.51,0.29828041]
[1738075921519,1.55420745,672.62,670.51,0.29828041]
[1738075921719,1.10857193,673.4,670.51,0.29828041]
[1738075921919,1.55379687,673.39,670.51,0.29828041]
[1738075922522,0.29706646,673.25,670.51,0.29828041]
[1738075923517,0.27347523,673.24,670.51,0.29828041]
[1738075923920,0.27347523,673.23,670.51,0.29828041]
[1738075924121,0.27347523,673.22,670.51,0.29828041]
[1738075924524,0.27347523,673.21,670.51,0.29828041]
[1738075924817,0.27347523,673.2,670.51,0.29828041]
[1738075925022,0.27347523,673.19,670.51,0.29828041]
[1738075925222,0.27347523,673.18,670.51,0.29828041]
[1738075925416,0.27347523,673.17,670.51,0.29828041]
[1738075925616,0.29706646,673.25,670.51,0.29828041]
[1738075925617,0.27347523,673.16,670.51,0.29828041]
[1738075925818,0.27347523,673.15,670.51,0.29828041]
[1738075926123,0.27347523,673.14,670.51,0.29828041]
[1738075926323,0.27347523,673.13,670.51,0.29828041]
[1738075926524,0.27347523,673.12,670.51,0.29828041]
[1738075926721,0.27347523,673.11,670.51,0.29828041]
[1738075926923,0.27347523,673.1,670.51,0.29828041]
[1738075927123,0.27347523,673.09,670.51,0.29828041]
[1738075927320,0.29706646,673.25,670.51,0.29828041]
[1738075927524,0.27344796,673.24,670.51,0.29828041]
[1738075927826,0.27344796,673.23,670.51,0.29828041]
[1738075928026,0.27344796,673.22,670.51,0.29828041]
[1738075928227,0.27344796,673.21,670.51,0.29828041]
[1738075928528,0.27344796,673.2,670.51,0.29828041]
[1738075928725,0.27344796,673.19,670.51,0.29828041]
[1738075928925,0.27344796,673.18,670.51,0.29828041]
[1738075929122,0.27344412,673.17,670.51,0.29828041]
[1738075929323,0.27344412,673.16,670.51,0.29828041]
[1738075929525,0.27344412,673.15,670.51,0.29828041]
[1738075929826,0.27344412,673.14,670.51,0.29828041]
[1738075930128,0.27344412,673.13,670.51,0.29828041]
[1738075930329,0.27344412,673.12,670.51,0.29828041]
[1738075930527,0.27344412,673.11,670.51,0.29828041]
[1738075930727,0.27344412,673.1,670.51,0.29828041]
[1738075930920,0.27344412,673.09,670.51,0.29828041]
[1738075931125,0.27344412,673.08,670.51,0.29828041]
[1738075931328,0.27344412,673.07,670.51,0.29828041]
[1738075931727,0.29719448,672.96,670.51,0.29828041]
[1738075931926,0.27344412,672.95,670.51,0.29828041]
[1738075932123,0.27344412,672.94,670.51,0.29828041]
[1738075932522,0.27344412,672.93,670.51,0.29828041]
[1738075932723,0.27344412,672.92,670.51,0.29828041]
[1738075933029,0.27344412,672.91,670.51,0.29828041]
[1738075933230,0.27344412,672.9,670.51,0.29828041]
[1738075933528,0.27344412,672.89,670.51,0.29828041]
[1738075933721,0.27344412,672.88,670.51,0.29828041]
[1738075933928,0.27344412,672.87,670.51,0.29828041]
[1738075934230,0.27344412,672.86,670.51,0.29828041]
[1738075934428,0.27344412,672.85,670.51,0.29828041]
[1738075934625,0.27344412,672.84,670.51,0.29828041]
[1738075934828,0.27344412,672.94,670.51,0.29828041]
[1738075935024,0.27344412,672.93,670.51,0.29828041]
[1738075935230,0.27344412,672.92,670.51,0.29828041]
[1738075935430,0.27344412,672.91,670.51,0.29828041]
[1738075935631,0.27344412,672.9,670.51,0.29828041]
[1738075935832,1.55388359,672.95,670.51,0.29828041]
[1738075936034,0.27346762,672.94,670.51,0.29828041]
[1738075936234,0.27346762,672.93,670.51,0.29828041]
[1738075936534,0.27346762,672.92,670.51,0.29828041]
[1738075936734,0.27346762,672.91,670.51,0.29828041]
[1738075936935,0.27346762,672.9,670.51,0.29828041]
[1738075937136,0.27346762,672.89,670.51,0.29828041]
[1738075937329,0.27346762,672.88,670.51,0.29828041]
[1738075937736,0.27346762,672.87,670.51,0.29828041]
[1738075938035,0.27346762,672.86,670.51,0.29828041]
[1738075938334,0.27346762,672.85,670.51,0.29828041]
[1738075938535,0.27346762,672.84,670.51,0.29828041]
[1738075938936,0.27346762,672.83,670.51,0.29828041]
[1738075939131,0.27347592,672.82,670.63,1.09902683]
[1738075939336,0.27347592,672.81,670.63,1.09902683]
[1738075939531,0.27347592,672.8,670.65,0.29821814]
[1738075939730,0.27347592,672.79,670.65,0.29821814]
[1738075939935,0.27347592,672.78,670.65,0.29821814]
[1738075940134,0.27347592,672.77,670.65,0.29821814]
[1738075940335,0.27347592,672.94,670.65,0.29821814]
[1738075940634,0.27347592,672.93,670.65,0.29821814]
[1738075940834,0.27347592,672.92,670.65,0.29821814]
[1738075941035,0.27347592,672.91,670.65,0.29821814]
[1738075941235,0.27347592,672.9,670.65,0.29821814]
[1738075941437,0.27347592,672.89,670.65,0.29821814]
[1738075941735,0.27347592,672.88,670.65,0.29821814]
[1738075941936,0.29723865,672.86,670.65,0.29821814]
[1738075942142,0.27347592,672.85,670.65,0.29821814]
[1738075942341,0.2972519,672.83,670.65,0.29821814]
[1738075942542,0.27347592,672.82,670.65,0.29821814]
[1738075942742,0.29726516,672.8,670.65,0.29821814]
[1738075943043,0.27346251,672.79,670.84,1.09902683]
[1738075943341,0.27346251,672.78,670.85,0.29812923]
[1738075943542,0.29728283,672.76,670.85,0.29812923]
[1738075943737,0.27346479,672.75,670.85,0.29812923]
[1738075943940,0.27346479,672.74,670.85,0.29812923]
[1738075944141,0.57076088,672.73,670.85,0.29812923]
[1738075944343,0.27346479,672.72,670.85,0.29812923]
[1738075944640,0.29729609,672.73,670.85,0.29812923]
[1738075944641,0.27346479,672.71,670.85,0.29812923]
[1738075944845,0.29731377,672.69,670.98,1.09902683]
[1738075945145,0.27346479,672.68,670.98,1.09902683]
[1738075945442,0.27346479,672.67,670.98,1.09902683]
[1738075945640,0.27346479,672.66,670.98,1.09902683]
[1738075945845,0.27346479,672.65,670.98,1.09902683]
[1738075946046,0.27346479,672.64,670.98,1.09902683]
[1738075946243,0.27346479,672.63,670.98,1.09902683]
[1738075946440,0.27346479,672.62,670.98,1.09902683]
[1738075946641,0.27346479,672.61,670.98,1.09902683]
[1738075946841,0.27346479,672.6,670.98,1.09902683]
[1738075947045,0.27346479,672.59,670.98,1.09902683]
[1738075947245,0.27346479,672.58,670.98,1.09902683]
[1738075947446,0.27346479,672.68,670.98,1.09902683]
[1738075947748,0.27346479,672.67,671.09,1.09902683]
[1738075947940,0.27346479,672.68,671.09,1.09902683]
[1738075948145,0.27346479,672.66,671.09,1.09902683]
[1738075948342,0.27346479,672.65,671.09,1.09902683]
[1738075948541,0.29731377,672.69,671.09,1.09902683]
[1738075948542,0.27346479,672.64,671.09,1.09902683]
[1738075948848,0.27346479,672.63,671.09,1.09902683]
[1738075949047,0.29731377,672.69,671.09,1.09902683]
[1738075949048,0.27346479,672.68,671.09,1.09902683]
[1738075949247,0.27346479,672.67,671.09,1.09902683]
[1738075949444,0.27346479,672.68,671.09,1.09902683]
[1738075949645,0.27346479,672.67,671.09,1.09902683]
[1738075949850,0.27346479,672.66,671.09,1.09902683]
[1738075950149,0.27346479,672.65,671.09,1.09902683]
[1738075950348,0.27346479,672.64,670.85,0.29812923]
[1738075950542,0.27346479,672.68,670.85,0.29812923]
[1738075950748,0.27346479,672.67,670.85,0.29812923]
[1738075950946,0.27346479,672.68,670.85,0.29812923]
[1738075951249,0.27350038,672.67,670.85,0.29812923]
[1738075951446,0.27350038,672.66,670.85,0.29812923]
[1738075951652,0.27350038,672.65,670.85,0.29812923]
[1738075951849,0.27350038,672.64,670.85,0.29812923]
[1738075952044,0.27350038,672.68,670.85,0.29812923]
[1738075952248,0.27350038,672.67,670.94,1.09902683]
[1738075952443,0.27350038,672.66,670.94,1.09902683]
[1738075952643,0.27350038,672.68,670.94,1.09902683]
[1738075952848,1.55389516,672.66,670.94,1.09902683]
[1738075953051,0.27350038,672.65,670.94,1.09902683]
[1738075954445,0.27348394,672.64,670.94,1.09902683]
[1738075954648,0.27348394,672.65,670.94,1.09902683]
[1738075954848,0.27348394,672.64,670.94,1.09902683]
[1738075955046,0.27348394,672.63,670.94,1.09902683]
[1738075955252,0.27348394,672.62,670.94,1.09902683]
[1738075955553,0.27348394,672.61,671.19,1.09902683]
[1738075955751,0.27348394,672.65,671.19,1.09902683]
[1738075955951,0.27348394,672.64,671.19,1.09902683]
[1738075956151,0.27348394,672.65,671.19,1.09902683]
[1738075956344,1.55389516,672.66,671.19,1.09902683]
[1738075956345,0.27348394,672.64,671.19,1.09902683]
[1738075956546,0.27345508,672.63,671.19,1.09902683]
[1738075956748,0.27345508,672.65,671.19,1.09902683]
[1738075956949,0.27345508,672.64,671.19,1.09902683]
[1738075957151,0.27345508,672.63,671.19,1.09902683]
[1738075957451,0.27345508,672.62,671.19,1.09902683]
[1738075957751,0.27345508,672.61,671.17,1.09902683]
[1738075957951,0.27346205,672.6,671.17,1.09902683]
[1738075958154,0.27346205,672.65,671.17,1.09902683]
[1738075958353,0.57079792,672.64,671.17,1.09902683]
[1738075958550,0.27346205,672.63,671.17,1.09902683]
[1738075958751,0.29734471,672.62,671.17,1.09902683]
[1738075958946,0.27346205,672.61,671.17,1.09902683]
[1738075959151,0.29735355,672.6,671.17,1.09902683]
[1738075959353,0.27346205,672.59,671.17,1.09902683]
[1738075959554,0.29735355,672.6,671.17,1.09902683]
[1738075959853,0.2734507,672.59,671.17,1.09902683]
[1738075960749,0.2734507,672.59,671.2,1.09902683]
[1738075961354,0.27345571,672.58,671.2,1.09902683]
[1738075961557,0.27345571,672.57,671.2,1.09902683]
[1738075961753,0.27345571,672.56,671.2,1.09902683]
[1738075961951,0.27345571,672.55,671.2,1.09902683]
[1738075962258,0.27345571,672.54,671.2,1.09902683]
[1738075962451,0.2973845,672.53,671.2,1.09902683]
[1738075963056,1.55377374,672.52,671.2,1.09902683]
[1738075963452,0.2734725,672.51,671.2,1.09902683]
[1738075964256,0.2734725,672.51,671.23,1.09902683]
[1738075964657,1.55377374,672.52,671.23,1.09902683]
[1738075964856,0.27352076,672.51,671.23,1.09902683]
[1738075965953,0.29739776,672.5,671.23,1.09902683]
[1738075966155,0.27352076,672.49,671.23,1.09902683]
[1738075966355,0.29740661,672.48,671.23,1.09902683]
[1738075966557,0.27352076,672.47,671.23,1.09902683]
[1738075967857,1.3775686,672.47,671.2,1.09902683]
[1738075968061,0.27352076,672.46,671.2,1.09902683]
[1738075969856,1.10404784,672.47,671.2,1.09902683]
[1738075970062,0.2735532,672.46,671.2,1.09902683]
[1738075970461,0.2974243,672.44,671.2,1.09902683]
[1738075970662,0.2735532,672.43,671.2,1.09902683]
[1738075970959,0.29743757,672.41,671.2,1.09902683]
[1738075971264,0.2735532,672.4,671.2,1.09902683]
[1738075971457,0.2735532,672.4,670.96,1.09902683]
[1738075972563,0.29745084,672.38,670.96,1.09902683]
[1738075972766,0.2735532,672.37,670.96,1.09902683]
[1738075972966,0.29746411,672.35,670.96,1.09902683]
[1738075973367,1.55428844,672.34,670.96,1.09902683]
[1738075974368,1.55428844,672.34,670.85,0.29812923]
[1738075976566,0.29747296,672.33,670.85,0.29812923]
[1738075977269,0.29747296,672.33,671.09,1.09902683]
[1738075978565,0.27351204,672.32,671.09,1.09902683]
[1738075979068,0.29748181,672.31,671.09,1.09902683]
[1738075980869,0.2735185,672.3,671.09,1.09902683]
[1738075981070,0.29748181,672.31,671.09,1.09902683]
[1738075981871,0.29748181,672.31,671.16,1.09902683]
[1738075984071,0.29748181,672.31,671.28,1.09902683]
[1738075987175,0.29748181,672.31,671.31,1.09902683]
[1738075989875,0.29748181,672.31,671.33,1.09902683]
[1738075992877,0.29748181,672.31,671.29,1.09902683]
[1738075994381,1.10404784,672.76,671.29,1.09902683]
[1738075994680,1.55342695,672.71,671.29,1.09902683]
[1738075994879,0.29730935,672.7,671.29,1.09902683]
[1738075997782,0.27344534,672.69,671.29,1.09902683]
[1738075999080,0.29730935,672.7,671.29,1.09902683]
[1738075999282,0.27352191,672.69,671.29,1.09902683]
[1738076000184,0.27352191,672.68,671.29,1.09902683]
[1738076000483,0.27352191,672.67,671.29,1.09902683]
[1738076000682,0.27352191,672.66,671.29,1.09902683]
[1738076000883,0.27352191,672.65,671.29,1.09902683]
[1738076001084,0.27352191,672.64,671.29,1.09902683]
[1738076001385,0.27352191,672.63,671.29,1.09902683]
[1738076001585,0.27352191,672.62,670.85,0.29812923]
[1738076001785,0.27352191,672.61,670.85,0.29812923]
[1738076001986,0.27352191,672.6,670.85,0.29812923]
[1738076002186,0.29736239,672.58,670.85,0.29812923]
[1738076002485,0.27352191,672.57,670.85,0.29812923]
[1738076002677,0.29736239,672.58,670.85,0.29812923]
[1738076002678,0.27352972,672.56,670.85,0.29812923]
[1738076002883,0.27352972,672.55,670.85,0.29812923]
[1738076003079,0.27352972,672.54,670.85,0.29812923]
[1738076003284,0.27352972,672.57,670.85,0.29812923]
[1738076003485,0.27352972,672.56,670.85,0.29812923]
[1738076003680,0.27352972,672.55,670.85,0.29812923]
[1738076003880,0.27352972,672.54,670.85,0.29812923]
[1738076004085,0.27352972,672.53,670.85,0.29812923]
[1738076004281,0.27352794,672.52,671.04,1.09902683]
[1738076004587,0.27352794,672.51,671.04,1.09902683]
[1738076004786,1.55414961,672.51,671.04,1.09902683]
[1738076004985,0.27352794,672.5,671.04,1.09902683]
[1738076006086,0.27359677,672.49,671.04,1.09902683]
[1738076006287,0.27359677,672.48,671.04,1.09902683]
[1738076006488,0.27359677,672.47,670.85,0.29812923]
[1738076006786,0.27359677,672.46,670.85,0.29812923]
[1738076006986,0.2974243,672.44,670.85,0.29812923]
[1738076007187,0.27359677,672.43,670.85,0.29812923]
[1738076007780,0.29743757,672.41,670.85,0.29812923]
[1738076008583,0.27360205,672.4,670.85,0.29812923]
[1738076008884,0.29743757,672.41,670.85,0.29812923]
[1738076009090,0.27359841,672.4,670.85,0.29812923]
[1738076009289,1.55414961,672.51,670.85,0.29812923]
[1738076009290,0.29745084,672.38,670.85,0.29812923]
[1738076009992,0.2735617,672.37,670.85,0.29812923]
[1738076010592,0.29745084,672.38,670.85,0.29812923]
[1738076011892,0.29745084,672.38,670.87,1.09902683]
[1738076012090,0.27354692,672.37,670.87,1.09902683]
[1738076013086,0.27355649,672.36,670.87,1.09902683]
[1738076013293,0.29745084,672.38,670.87,1.09902683]
[1738076014495,0.29745084,672.38,670.99,1.09902683]
[1738076015092,1.55421324,672.37,670.99,1.09902683]
[1738076015293,0.29746411,672.35,670.99,1.09902683]
[1738076017095,0.29746411,672.35,670.85,0.29812923]
[1738076028599,0.29746411,672.35,670.88,1.09902683]
[1738076031000,0.29746411,672.35,670.96,1.09902683]
[1738076033801,1.10404784,672.27,671.03,1.09902683]
[1738076034503,1.85192544,672.26,671.03,1.09902683]
[1738076034802,0.29750836,672.25,671.03,1.09902683]
[1738076036106,0.29750836,672.25,671.05,1.09902683]
[1738076039009,1.10404784,672.21,671.06,1.09902683]
[1738076039208,0.29753492,672.19,671.06,1.09902683]
[1738076043918,1.40158276,672.19,670.82,1.09902683]
[1738076044813,1.55480926,672.18,670.82,1.09902683]
[1738076045112,0.2975482,672.16,670.82,1.09902683]
[1738076046714,1.10404784,672.15,670.82,1.09902683]
[1738076046914,0.29755705,672.14,670.82,1.09902683]
[1738076047915,0.29755705,672.14,670.22,2.73874677]
[1738076049015,0.29755705,672.14,669.16,1.94582146]
[1738076049315,0.29755705,672.14,670.17,0.29843174]
[1738076050517,0.29755705,672.14,670.88,1.11003201]
[1738076053619,1.11254844,672.11,670.8,1.11003201]
[1738076053818,0.29757919,672.09,670.8,1.11003201]
[1738076055118,1.55483242,672.08,670.8,1.11003201]
[1738076055319,0.29758804,672.07,670.8,1.11003201]
[1738076055721,0.29758804,672.07,670.77,1.11003201]
[1738076058319,0.29758804,672.07,670.83,1.11003201]
[1738076061029,0.29758804,672.07,670.8,1.11003201]
[1738076064229,0.29758804,672.07,670.79,1.11003201]
[1738076066530,0.29758804,672.07,670.87,1.11003201]
[1738076069936,0.29758804,672.07,670.94,1.11003201]
[1738076072232,0.29758804,672.07,671.1,1.11003201]
[1738076074135,1.11254844,672.49,671.1,1.11003201]
[1738076074336,0.29740661,672.48,671.1,1.11003201]
[1738076075436,0.29740661,672.48,670.99,1.11003201]
[1738076075634,0.29740661,672.48,671.0,0.29806259]
[1738076078435,0.27344729,672.47,671.0,0.29806259]
[1738076078634,0.29741545,672.46,671.0,0.29806259]
[1738076078838,0.27344729,672.45,671.0,0.29806259]
[1738076079035,0.2974243,672.44,671.0,0.29806259]
[1738076079943,0.27344408,672.43,671.0,0.29806259]
[1738076080143,0.5708728,672.43,671.0,0.29806259]
[1738076080443,0.29742872,672.43,671.0,0.29806259]
[1738076080743,0.29742872,672.43,671.05,1.11003201]
[1738076081743,0.27343854,672.42,671.05,1.11003201]
[1738076081943,0.29742872,672.43,671.05,1.11003201]
[1738076082139,1.11254844,673.0,671.07,0.2980315]
[1738076083846,1.11254844,673.07,671.07,0.2980315]
[1738076087148,1.55245676,673.46,671.46,1.11003201]
[1738076087356,0.29697824,673.45,671.46,1.11003201]
[1738076087648,0.29697824,673.45,671.48,0.29784952]
[1738076087849,0.27309593,673.44,671.48,0.29784952]
[1738076088251,0.29697824,673.45,671.48,0.29784952]
[1738076088550,0.27309409,673.44,671.48,0.29784952]
[1738076088850,0.29698706,673.43,671.48,0.29784952]
[1738076089052,0.27309409,673.42,671.48,0.29784952]
[1738076089550,0.29698706,673.43,671.48,0.29784952]
[1738076089744,0.29699588,673.41,671.48,0.29784952]
[1738076090353,0.27313513,673.4,671.48,0.29784952]
[1738076090548,0.2970047,673.39,671.48,0.29784952]
[1738076090952,0.57013983,673.39,671.48,0.29784952]
[1738076091145,0.27313513,673.38,671.48,0.29784952]
[1738076091349,0.2970047,673.39,671.48,0.29784952]
[1738076091548,0.27313449,673.38,671.48,0.29784952]
[1738076091745,0.27313449,673.37,671.48,0.29784952]
[1738076091948,0.27313449,673.36,671.48,0.29784952]
[1738076092150,0.27313449,673.35,671.48,0.29784952]
[1738076092352,0.27313449,673.34,671.48,0.29784952]
[1738076092551,0.27313449,673.33,671.48,0.29784952]
[1738076092751,0.27313449,673.32,671.48,0.29784952]
[1738076092949,0.27313449,673.31,671.48,0.29784952]
[1738076093251,0.27313449,673.3,671.48,0.29784952]
[1738076093452,0.27313449,673.29,671.48,0.29784952]
[1738076093653,0.27313449,673.28,671.48,0.29784952]
[1738076093859,0.27313449,673.38,671.48,0.29784952]
[1738076094053,0.57014801,673.37,671.48,0.29784952]
[1738076094353,1.55245676,673.46,671.48,0.29784952]
[1738076094354,0.57015242,673.36,671.48,0.29784952]
[1738076094554,0.57015684,673.35,671.48,0.29784952]
[1738076094753,0.27313449,673.34,671.48,0.29784952]
[1738076095149,0.27313449,673.33,671.48,0.29784952]
[1738076095353,0.27313449,673.32,671.48,0.29784952]
[1738076095554,0.27313449,673.31,671.48,0.29784952]
[1738076095755,1.55251447,673.34,671.48,0.29784952]
[1738076096355,0.29703117,673.33,671.48,0.29784952]
[1738076096554,0.57016687,673.33,671.48,0.29784952]
[1738076096857,0.2731357,673.32,671.48,0.29784952]
[1738076097061,0.29703999,673.31,671.48,0.29784952]
[1738076097350,0.2731357,673.3,671.48,0.29784952]
[1738076097553,0.29704881,673.29,671.48,0.29784952]
[1738076097753,0.2731357,673.28,671.48,0.29784952]
[1738076097947,0.29705764,673.27,671.48,0.29784952]
[1738076098149,0.2731357,673.26,671.48,0.29784952]
[1738076098554,0.29706646,673.25,671.48,0.29784952]
[1738076121071,0.29706646,673.25,671.5,1.09729964]
[1738076121979,0.29706646,673.25,671.51,0.29783621]
[1738076123478,0.29706646,673.25,671.92,1.09729964]
[1738076126478,1.10351883,673.13,671.92,1.09729964]
[1738076127074,0.29712825,673.11,671.92,1.09729964]
[1738076127874,1.55246253,673.1,671.92,1.09729964]
[1738076130280,0.29713708,673.09,671.92,1.09729964]
[1738076137685,0.2731357,673.26,671.94,0.29764562]
[1738076141690,1.55110167,673.9,672.1,1.10159423]
[1738076142286,0.29678434,673.89,672.1,1.10159423]
[1738076142482,0.56969818,673.89,672.1,1.10159423]
[1738076142687,0.27290815,673.88,672.1,1.10159423]
[1738076142891,0.27290815,673.88,671.94,0.29764562]
[1738076144286,0.27291183,673.87,671.94,0.29764562]
[1738076144686,0.27291183,673.86,671.94,0.29764562]
[1738076144882,0.27291183,673.88,671.94,0.29764562]
[1738076145082,0.27291183,673.87,671.94,0.29764562]
[1738076145289,0.29678434,673.89,671.94,0.29764562]
[1738076145290,0.27291183,673.88,672.09,1.09227686]
[1738076145481,0.27291183,673.87,672.09,1.09227686]
[1738076145687,0.27291183,673.86,672.09,1.09227686]
[1738076145888,0.29678434,673.89,672.09,1.09227686]
[1738076146189,0.27291034,673.88,672.11,0.29757033]
[1738076146790,0.29679315,673.87,672.11,0.29757033]
[1738076146990,0.27291034,673.86,672.11,0.29757033]
[1738076147590,0.56971558,673.85,672.11,0.29757033]
[1738076147794,0.56971999,673.84,672.11,0.29757033]
[1738076147993,0.56972439,673.83,672.11,0.29757033]
[1738076148292,0.5697288,673.82,672.11,0.29757033]
[1738076148493,0.5697332,673.81,672.11,0.29757033]
[1738076148693,0.27291363,673.8,672.11,0.29757033]
[1738076148992,0.29682838,673.79,672.11,0.29757033]
[1738076149393,0.27293099,673.78,672.11,0.29757033]
[1738076149587,0.29683719,673.77,672.11,0.29757033]
[1738076149789,0.27293099,673.76,672.11,0.29757033]
[1738076150396,0.29684601,673.75,672.11,0.29757033]
[1738076150695,0.27293099,673.74,672.11,0.29757033]
[1738076150893,0.29685482,673.73,672.11,0.29757033]
[1738076151290,0.27294854,673.72,672.11,0.29757033]
[1738076151597,0.29685482,673.73,672.11,0.29757033]
[1738076151795,0.27296214,673.72,672.11,0.29757033]
[1738076152198,0.29686363,673.71,672.11,0.29757033]
[1738076152396,0.27296214,673.7,672.11,0.29757033]
[1738076153999,0.29686363,673.71,672.11,0.29757033]
[1738076154396,0.27295787,673.7,672.11,0.29757033]
[1738076154592,0.56982591,673.7,672.11,0.29757033]
[1738076154895,0.29686804,673.7,672.11,0.29757033]
[1738076155190,0.27295011,673.69,672.11,0.29757033]
[1738076155394,0.29686804,673.7,672.11,0.29757033]
[1738076155593,0.27295364,673.69,672.11,0.29757033]
[1738076156398,0.29687685,673.68,672.11,0.29757033]
[1738076156594,0.27295364,673.67,672.11,0.29757033]
[1738076156799,0.5698349,673.67,672.11,0.29757033]
[1738076156999,0.27295364,673.66,672.11,0.29757033]
[1738076158392,0.29689007,673.65,672.11,0.29757033]
[1738076158794,0.27297978,673.64,672.11,0.29757033]
[1738076158999,0.29689889,673.63,672.11,0.29757033]
[1738076159393,0.27298055,673.62,672.11,0.29757033]
[1738076159593,0.56988384,673.62,672.11,0.29757033]
[1738076159795,0.27298055,673.61,672.11,0.29757033]
[1738076160400,1.55113624,673.77,672.11,0.29757033]
[1738076160401,0.29691211,673.6,672.11,0.29757033]
[1738076165400,0.27299586,673.59,672.11,0.29757033]
[1738076165900,0.29691211,673.6,672.11,0.29757033]
[1738076166101,0.27299452,673.59,672.11,0.29757033]
[1738076166303,0.27299734,673.58,672.11,0.29757033]
[1738076166503,0.27299734,673.59,672.11,0.29757033]
[1738076166705,0.27299734,673.58,672.11,0.29757033]
[1738076166902,0.29691211,673.6,672.11,0.29757033]
[1738076167202,0.27304377,673.59,672.11,0.29757033]
[1738076173709,0.29691211,673.6,672.11,0.29757033]
[1738076175506,0.27308316,673.59,672.11,0.29757033]
[1738076176713,0.27308567,673.58,672.11,0.29757033]
[1738076177014,0.27308567,673.57,672.11,0.29757033]
[1738076177210,0.27308567,673.59,672.11,0.29757033]
[1738076177411,0.27308567,673.58,672.11,0.29757033]
[1738076177607,0.27308567,673.59,672.11,0.29757033]
[1738076177810,0.27308567,673.58,672.11,0.29757033]
[1738076178013,0.27308567,673.57,672.11,0.29757033]
[1738076178214,0.27308567,673.59,672.11,0.29757033]
[1738076178413,0.29691211,673.6,672.11,0.29757033]
[1738076178613,0.27313232,673.59,672.11,0.29757033]